[Event "Late-Titled-Tuesday-Blitz-February-27-2024"]
[Site "Chess.com"]
[Date "2024.02.27"]
[Round "6"]
[White "rhwr"]
[Black "Vasily85"]
[Result "0-1"]
[WhiteElo "2332"]
[BlackElo "2494"]
[TimeControl "180+1"]
[EndTime "15:05:42 PST"]
[Termination "Vasily85 won by resignation"]

1. e4 {[%clk 0:02:59.7]} 1... c6 {[%clk 0:02:48.3]} 2. Nc3 {[%clk 0:02:57.8]}
2... d5 {[%clk 0:02:47.4]} 3. d4 {[%clk 0:02:58.5]} 3... dxe4 {[%clk 0:02:43.6]}
4. Nxe4 {[%clk 0:02:59.4]} 4... Nd7 {[%clk 0:02:42]} 5. Nf3 {[%clk 0:02:55.6]}
5... Ngf6 {[%clk 0:02:41.8]} 6. Ng3 {[%clk 0:02:51.6]} 6... e6 {[%clk
0:02:41.4]} 7. Bd3 {[%clk 0:02:52.1]} 7... Bd6 {[%clk 0:02:41.3]} 8. O-O {[%clk
0:02:52.5]} 8... O-O {[%clk 0:02:41.5]} 9. c4 {[%clk 0:02:51]} 9... b6 {[%clk
0:02:41]} 10. Bd2 {[%clk 0:02:49.5]} 10... Bb7 {[%clk 0:02:40.5]} 11. b4 {[%clk
0:02:49.2]} 11... Re8 {[%clk 0:02:27.9]} 12. c5 {[%clk 0:02:48.5]} 12... Bf8
{[%clk 0:02:23.3]} 13. Bf4 {[%clk 0:02:37.4]} 13... Nd5 {[%clk 0:02:20.1]} 14.
Bd2 {[%clk 0:02:34.9]} 14... e5 {[%clk 0:01:30.5]} 15. dxe5 {[%clk 0:02:29.2]}
15... Nxe5 {[%clk 0:01:31.4]} 16. Nxe5 {[%clk 0:02:17]} 16... Rxe5 {[%clk
0:01:32.3]} 17. f4 {[%clk 0:01:55.9]} 17... Re8 {[%clk 0:01:23.8]} 18. Rc1
{[%clk 0:01:46.8]} 18... Qf6 {[%clk 0:00:55.6]} 19. Qf3 {[%clk 0:01:14.4]} 19...
Rad8 {[%clk 0:00:45]} 20. Kh1 {[%clk 0:01:01.8]} 20... b5 {[%clk 0:00:29.8]} 21.
Be4 {[%clk 0:00:47.7]} 21... Qd4 {[%clk 0:00:23.4]} 22. Bxd5 {[%clk 0:00:46.2]}
22... Rxd5 {[%clk 0:00:20.3]} 23. Bc3 {[%clk 0:00:45.8]} 23... Qd3 {[%clk
0:00:17.4]} 24. Qg4 {[%clk 0:00:43.2]} 24... Bc8 {[%clk 0:00:16.2]} 25. f5
{[%clk 0:00:43]} 25... Re3 {[%clk 0:00:05.8]} 26. Nh5 {[%clk 0:00:38.6]} 26...
f6 {[%clk 0:00:04.4]} 27. Nxf6+ {[%clk 0:00:38]} 27... Kh8 {[%clk 0:00:04.6]}
28. Nxd5 {[%clk 0:00:35.3]} 28... Qxd5 {[%clk 0:00:05.5]} 29. f6 {[%clk
0:00:34.9]} 29... Bxg4 {[%clk 0:00:04.9]} 30. fxg7+ {[%clk 0:00:35.1]} 30...
Bxg7 {[%clk 0:00:05.8]} 31. Rf8+ {[%clk 0:00:35.3]} 31... Qg8 {[%clk 0:00:06.4]}
32. Rxg8+ {[%clk 0:00:34.3]} 32... Kxg8 {[%clk 0:00:07.3]} 33. h3 {[%clk
0:00:32.3]} 33... Bxc3 {[%clk 0:00:06.1]} 34. hxg4 {[%clk 0:00:32.6]} 34... Re1+
{[%clk 0:00:06.8]} 35. Rxe1 {[%clk 0:00:32.4]} 35... Bxe1 {[%clk 0:00:07.7]} 36.
a3 {[%clk 0:00:32.3]} 36... a5 {[%clk 0:00:08.4]} 37. bxa5 {[%clk 0:00:31.6]}
37... Bxa5 {[%clk 0:00:09.3]} 0-1

[Event "Late-Titled-Tuesday-Blitz-February-27-2024"]
[Site "Chess.com"]
[Date "2024.02.27"]
[Round "6"]
[White "Evgeny81"]
[Black "Bryanl106"]
[Result "0-1"]
[WhiteElo "2773"]
[BlackElo "2592"]
[TimeControl "180+1"]
[EndTime "15:05:44 PST"]
[Termination "Bryanl106 won on time"]

1. e4 {[%clk 0:02:59.2]} 1... e5 {[%clk 0:02:59.1]} 2. Nf3 {[%clk 0:02:58.7]}
2... Nc6 {[%clk 0:02:59.3]} 3. Bb5 {[%clk 0:02:59.2]} 3... a6 {[%clk 0:02:58.9]}
4. Ba4 {[%clk 0:02:59.6]} 4... Nf6 {[%clk 0:02:59]} 5. O-O {[%clk 0:02:59.9]}
5... Be7 {[%clk 0:02:59]} 6. Re1 {[%clk 0:02:59.4]} 6... b5 {[%clk 0:02:58.7]}
7. Bb3 {[%clk 0:03:00]} 7... d6 {[%clk 0:02:59.6]} 8. c3 {[%clk 0:02:59.6]} 8...
O-O {[%clk 0:02:59]} 9. h3 {[%clk 0:02:59.3]} 9... a5 {[%clk 0:02:57.6]} 10. d4
{[%clk 0:02:56.8]} 10... Bd7 {[%clk 0:02:47.9]} 11. a3 {[%clk 0:02:53.6]} 11...
a4 {[%clk 0:02:44.6]} 12. Ba2 {[%clk 0:02:53.2]} 12... h6 {[%clk 0:02:43.7]} 13.
Nbd2 {[%clk 0:02:51.7]} 13... Re8 {[%clk 0:02:43]} 14. Nf1 {[%clk 0:02:51.4]}
14... Bf8 {[%clk 0:02:42.3]} 15. Ng3 {[%clk 0:02:51.5]} 15... Na5 {[%clk
0:02:35.5]} 16. Be3 {[%clk 0:02:42.1]} 16... Be6 {[%clk 0:02:24]} 17. Bxe6
{[%clk 0:02:33.2]} 17... Rxe6 {[%clk 0:02:24.9]} 18. Qc2 {[%clk 0:02:22]} 18...
Nc4 {[%clk 0:02:19.9]} 19. Rad1 {[%clk 0:02:21.2]} 19... Qc8 {[%clk 0:02:12.5]}
20. Bc1 {[%clk 0:02:17.9]} 20... Re8 {[%clk 0:02:10.8]} 21. Nf5 {[%clk
0:02:14.4]} 21... Qb7 {[%clk 0:01:54.2]} 22. d5 {[%clk 0:02:08]} 22... Rad8
{[%clk 0:01:52.6]} 23. g4 {[%clk 0:02:05]} 23... c6 {[%clk 0:01:42.7]} 24. dxc6
{[%clk 0:01:54.8]} 24... Qxc6 {[%clk 0:01:42]} 25. g5 {[%clk 0:01:48.2]} 25...
hxg5 {[%clk 0:01:42.9]} 26. Bxg5 {[%clk 0:01:47.1]} 26... d5 {[%clk 0:01:41]}
27. Bxf6 {[%clk 0:01:32.8]} 27... Qxf6 {[%clk 0:01:39.9]} 28. Rxd5 {[%clk
0:01:25.2]} 28... Rxd5 {[%clk 0:01:32.1]} 29. exd5 {[%clk 0:01:26.1]} 29... g6
{[%clk 0:01:29.6]} 30. N5h4 {[%clk 0:01:13.7]} 30... Bc5 {[%clk 0:01:28.3]} 31.
Re2 {[%clk 0:00:58.1]} 31... Nd6 {[%clk 0:01:26.4]} 32. Qd2 {[%clk 0:00:48.6]}
32... e4 {[%clk 0:01:18.5]} 33. Qg5 {[%clk 0:00:48]} 33... Qh8 {[%clk
0:01:12.6]} 34. Nd2 {[%clk 0:00:34.3]} 34... Re5 {[%clk 0:01:11.7]} 35. Qd8+
{[%clk 0:00:30.4]} 35... Re8 {[%clk 0:01:10.2]} 36. Qg5 {[%clk 0:00:29.5]} 36...
Re5 {[%clk 0:01:01.8]} 37. Qg3 {[%clk 0:00:28.5]} 37... Qf6 {[%clk 0:00:54.8]}
38. Ng2 {[%clk 0:00:14.1]} 38... Rg5 {[%clk 0:00:52.2]} 39. Nxe4 {[%clk
0:00:11.2]} 39... Nxe4 {[%clk 0:00:48.7]} 40. Qb8+ {[%clk 0:00:10]} 40... Kg7
{[%clk 0:00:48.5]} 41. h4 {[%clk 0:00:06.8]} 41... Bxf2+ {[%clk 0:00:46.2]} 42.
Kh1 {[%clk 0:00:04.6]} 42... Ng3+ {[%clk 0:00:46.2]} 43. Kh2 {[%clk 0:00:04.9]}
43... Nxe2 {[%clk 0:00:41.5]} 44. hxg5 {[%clk 0:00:04.3]} 44... Qxg5 {[%clk
0:00:36.8]} 45. Qc8 {[%clk 0:00:04.3]} 45... Bg1+ {[%clk 0:00:36.3]} 46. Kh1
{[%clk 0:00:02.6]} 46... Qh5+ {[%clk 0:00:36.8]} 0-1

[Event "Late-Titled-Tuesday-Blitz-February-27-2024"]
[Site "Chess.com"]
[Date "2024.02.27"]
[Round "6"]
[White "DryCounty"]
[Black "Peroncio"]
[Result "1-0"]
[WhiteElo "2665"]
[BlackElo "2424"]
[TimeControl "180+1"]
[EndTime "15:05:45 PST"]
[Termination "DryCounty won on time"]

1. e4 {[%clk 0:02:58.3]} 1... c5 {[%clk 0:02:59.4]} 2. Nf3 {[%clk 0:02:57.5]}
2... d6 {[%clk 0:02:59.9]} 3. d4 {[%clk 0:02:56.7]} 3... cxd4 {[%clk 0:03:00.8]}
4. Nxd4 {[%clk 0:02:56.7]} 4... Nf6 {[%clk 0:03:01.4]} 5. Nc3 {[%clk 0:02:56.8]}
5... a6 {[%clk 0:03:01.7]} 6. Be2 {[%clk 0:02:56.7]} 6... e5 {[%clk 0:03:01.8]}
7. Nb3 {[%clk 0:02:56.3]} 7... Be7 {[%clk 0:03:02.5]} 8. O-O {[%clk 0:02:56.4]}
8... O-O {[%clk 0:03:03.2]} 9. Re1 {[%clk 0:02:56.6]} 9... Be6 {[%clk
0:03:03.8]} 10. Bf1 {[%clk 0:02:56.9]} 10... Nbd7 {[%clk 0:03:04.4]} 11. Nd5
{[%clk 0:02:56.8]} 11... Bxd5 {[%clk 0:03:04]} 12. exd5 {[%clk 0:02:56.4]} 12...
Re8 {[%clk 0:03:03.5]} 13. c4 {[%clk 0:02:54.1]} 13... Bf8 {[%clk 0:03:02.6]}
14. Be3 {[%clk 0:02:52]} 14... g6 {[%clk 0:02:59]} 15. Nd2 {[%clk 0:02:51.1]}
15... Nh5 {[%clk 0:02:58.6]} 16. b4 {[%clk 0:02:45.2]} 16... f5 {[%clk
0:02:58.4]} 17. Nb3 {[%clk 0:02:36.5]} 17... Bg7 {[%clk 0:02:47.1]} 18. Rc1
{[%clk 0:02:35.2]} 18... Rc8 {[%clk 0:02:44.4]} 19. c5 {[%clk 0:02:32.9]} 19...
dxc5 {[%clk 0:02:20.3]} 20. Nxc5 {[%clk 0:02:21.4]} 20... Nxc5 {[%clk
0:02:15.8]} 21. Bxc5 {[%clk 0:02:15.1]} 21... Kh8 {[%clk 0:02:05.1]} 22. d6
{[%clk 0:02:14]} 22... Qd7 {[%clk 0:02:05.4]} 23. g3 {[%clk 0:02:01]} 23... Nf6
{[%clk 0:02:02.8]} 24. Bg2 {[%clk 0:01:58.6]} 24... e4 {[%clk 0:02:02.5]} 25.
Qb3 {[%clk 0:01:50.1]} 25... Rc6 {[%clk 0:01:59.9]} 26. Red1 {[%clk 0:01:39.7]}
26... b6 {[%clk 0:01:56.3]} 27. Be3 {[%clk 0:01:35.3]} 27... Rxd6 {[%clk
0:01:53.1]} 28. Bxb6 {[%clk 0:01:31.2]} 28... Rd3 {[%clk 0:01:30.8]} 29. Rxd3
{[%clk 0:01:14]} 29... exd3 {[%clk 0:01:31.7]} 30. Rd1 {[%clk 0:01:12.3]} 30...
Qb5 {[%clk 0:00:49.2]} 31. Bd4 {[%clk 0:00:48.9]} 31... Ng4 {[%clk 0:00:25.3]}
32. Bxg7+ {[%clk 0:00:45.9]} 32... Kxg7 {[%clk 0:00:25.7]} 33. Qc3+ {[%clk
0:00:34.5]} 33... Qe5 {[%clk 0:00:19.2]} 34. Qxd3 {[%clk 0:00:29.7]} 34... Qe2
{[%clk 0:00:10.1]} 35. Qd4+ {[%clk 0:00:24]} 35... Kh6 {[%clk 0:00:07]} 36. Bf1
{[%clk 0:00:21.4]} 1-0

[Event "Late-Titled-Tuesday-Blitz-February-27-2024"]
[Site "Chess.com"]
[Date "2024.02.27"]
[Round "6"]
[White "dimoni64"]
[Black "Roedor"]
[Result "0-1"]
[WhiteElo "1973"]
[BlackElo "2299"]
[TimeControl "180+1"]
[EndTime "15:05:45 PST"]
[Termination "Roedor won by checkmate"]

1. d4 {[%clk 0:03:00.9]} 1... Nf6 {[%clk 0:02:46.9]} 2. c4 {[%clk 0:03:01.1]}
2... g6 {[%clk 0:02:43.9]} 3. Nc3 {[%clk 0:03:01.1]} 3... Bg7 {[%clk 0:02:39.1]}
4. e4 {[%clk 0:03:01.2]} 4... d6 {[%clk 0:02:38]} 5. Nf3 {[%clk 0:03:01.6]} 5...
O-O {[%clk 0:02:38.5]} 6. Be2 {[%clk 0:03:02]} 6... e5 {[%clk 0:02:39]} 7. O-O
{[%clk 0:03:02.1]} 7... Nc6 {[%clk 0:02:38.1]} 8. d5 {[%clk 0:03:02.4]} 8... Ne7
{[%clk 0:02:38.3]} 9. Ne1 {[%clk 0:03:02.2]} 9... Nd7 {[%clk 0:02:37.7]} 10. Be3
{[%clk 0:03:02.2]} 10... f5 {[%clk 0:02:37.9]} 11. f3 {[%clk 0:03:02.7]} 11...
f4 {[%clk 0:02:38.5]} 12. Bf2 {[%clk 0:03:03.3]} 12... g5 {[%clk 0:02:39.2]} 13.
Rc1 {[%clk 0:03:01.3]} 13... Nf6 {[%clk 0:02:38.7]} 14. c5 {[%clk 0:02:59.6]}
14... Ng6 {[%clk 0:02:29.2]} 15. cxd6 {[%clk 0:02:59.3]} 15... cxd6 {[%clk
0:02:30.1]} 16. Nb5 {[%clk 0:02:58.9]} 16... Rf7 {[%clk 0:02:29.9]} 17. Nxa7
{[%clk 0:02:52.4]} 17... Bd7 {[%clk 0:02:29.3]} 18. Nb5 {[%clk 0:02:44.7]} 18...
Bf8 {[%clk 0:02:26.7]} 19. Nc7 {[%clk 0:02:32.7]} 19... Ba4 {[%clk 0:02:23.7]}
20. b3 {[%clk 0:02:29.6]} 20... Rxc7 {[%clk 0:02:23.5]} 21. Rxc7 {[%clk
0:02:24.4]} 21... Qxc7 {[%clk 0:02:22.2]} 22. bxa4 {[%clk 0:02:24.7]} 22... g4
{[%clk 0:02:22.5]} 23. Nd3 {[%clk 0:02:11.7]} 23... g3 {[%clk 0:02:21.2]} 24.
hxg3 {[%clk 0:02:10.9]} 24... fxg3 {[%clk 0:02:22.1]} 25. Bxg3 {[%clk 0:02:11]}
25... Nh5 {[%clk 0:02:22.4]} 26. Bf2 {[%clk 0:02:05.7]} 26... Bh6 {[%clk
0:02:17]} 27. g4 {[%clk 0:01:47.8]} 27... Nhf4 {[%clk 0:02:14]} 28. Nxf4 {[%clk
0:01:48.2]} 28... Bxf4 {[%clk 0:02:13.9]} 29. Qb3 {[%clk 0:01:41.7]} 29... h5
{[%clk 0:01:52.7]} 30. Rb1 {[%clk 0:01:34]} 30... hxg4 {[%clk 0:01:49.5]} 31.
fxg4 {[%clk 0:01:33.8]} 31... Qh7 {[%clk 0:01:41.3]} 32. Qxb7 {[%clk 0:01:24.4]}
32... Qh2+ {[%clk 0:01:40.7]} 33. Kf1 {[%clk 0:01:24.9]} 33... Qh1+ {[%clk
0:01:38.9]} 34. Bg1 {[%clk 0:01:24.7]} 34... Rf8 {[%clk 0:01:39.5]} 35. Bd3
{[%clk 0:00:20.5]} 35... Be3+ {[%clk 0:01:32.7]} 36. Ke2 {[%clk 0:00:20.4]}
36... Qf3+ {[%clk 0:01:33]} 37. Ke1 {[%clk 0:00:18.8]} 37... Bxg1 {[%clk
0:01:29.1]} 38. Be2 {[%clk 0:00:18.1]} 38... Qxe4 {[%clk 0:00:52.2]} 39. Rb4
{[%clk 0:00:13.9]} 39... Qc2 {[%clk 0:00:45.3]} 40. Rc4 {[%clk 0:00:06.9]} 40...
Bf2+ {[%clk 0:00:39]} 41. Kf1 {[%clk 0:00:06.5]} 41... Bd4+ {[%clk 0:00:36.7]}
42. Ke1 {[%clk 0:00:04.9]} 42... Bc3+ {[%clk 0:00:36.4]} 43. Rxc3 {[%clk
0:00:02.7]} 43... Qxc3+ {[%clk 0:00:37.3]} 44. Kd1 {[%clk 0:00:03]} 44... Rc8
{[%clk 0:00:35.5]} 45. Qd7 {[%clk 0:00:01.7]} 45... Qc1# {[%clk 0:00:35.4]} 0-1

[Event "Late-Titled-Tuesday-Blitz-February-27-2024"]
[Site "Chess.com"]
[Date "2024.02.27"]
[Round "6"]
[White "Tugrik1969"]
[Black "Capablanca_Oujda_2021"]
[Result "0-1"]
[WhiteElo "2389"]
[BlackElo "2520"]
[TimeControl "180+1"]
[EndTime "15:05:47 PST"]
[Termination "Capablanca_Oujda_2021 won on time"]

1. d4 {[%clk 0:02:55.7]} 1... Nf6 {[%clk 0:02:59.8]} 2. c4 {[%clk 0:02:54.9]}
2... e6 {[%clk 0:03:00.2]} 3. Nf3 {[%clk 0:02:54.5]} 3... d5 {[%clk 0:03:00.4]}
4. g3 {[%clk 0:02:54.4]} 4... c6 {[%clk 0:02:59.1]} 5. Bg2 {[%clk 0:02:54.2]}
5... Bd6 {[%clk 0:02:59.5]} 6. O-O {[%clk 0:02:53.5]} 6... Ne4 {[%clk
0:02:59.9]} 7. Nc3 {[%clk 0:02:51]} 7... f5 {[%clk 0:03:00.1]} 8. Qc2 {[%clk
0:02:49.6]} 8... O-O {[%clk 0:03:00.2]} 9. Rb1 {[%clk 0:02:49.9]} 9... Nd7
{[%clk 0:03:00]} 10. b4 {[%clk 0:02:49.1]} 10... Ndf6 {[%clk 0:02:53.5]} 11. b5
{[%clk 0:02:41.8]} 11... Bd7 {[%clk 0:02:52]} 12. a4 {[%clk 0:02:40.6]} 12...
Rc8 {[%clk 0:02:50.5]} 13. c5 {[%clk 0:02:16.1]} 13... cxb5 {[%clk 0:02:50.5]}
14. axb5 {[%clk 0:01:55.1]} 14... Bb8 {[%clk 0:02:32.2]} 15. Bf4 {[%clk
0:01:33.9]} 15... Bxf4 {[%clk 0:02:15.1]} 16. gxf4 {[%clk 0:01:34.8]} 16... Nxc3
{[%clk 0:02:07.3]} 17. Qxc3 {[%clk 0:01:34]} 17... Ne4 {[%clk 0:02:08.2]} 18.
Qa3 {[%clk 0:01:29.5]} 18... Ra8 {[%clk 0:02:00]} 19. Rfc1 {[%clk 0:01:25.1]}
19... g5 {[%clk 0:01:57.9]} 20. fxg5 {[%clk 0:01:21.5]} 20... Nxg5 {[%clk
0:01:56.2]} 21. Ne5 {[%clk 0:01:20.8]} 21... Be8 {[%clk 0:01:21.3]} 22. c6
{[%clk 0:01:11.5]} 22... bxc6 {[%clk 0:01:18.3]} 23. bxc6 {[%clk 0:01:12.4]}
23... Rc8 {[%clk 0:01:15.4]} 24. Qg3 {[%clk 0:00:54.8]} 24... f4 {[%clk
0:01:10.3]} 25. Qg4 {[%clk 0:00:53.3]} 25... Kh8 {[%clk 0:01:09.1]} 26. h4
{[%clk 0:00:44.8]} 26... Ne4 {[%clk 0:00:57.9]} 27. Qxe6 {[%clk 0:00:23.2]}
27... Rf6 {[%clk 0:00:45.9]} 28. Qg4 {[%clk 0:00:15.3]} 28... Rc7 {[%clk
0:00:34.8]} 29. Bxe4 {[%clk 0:00:08.1]} 29... dxe4 {[%clk 0:00:29.7]} 30. Kf1
{[%clk 0:00:05.9]} 30... Qxd4 {[%clk 0:00:24]} 31. Qg5 {[%clk 0:00:04.3]} 31...
Rf8 {[%clk 0:00:16.9]} 32. Rb8 {[%clk 0:00:04.1]} 32... f3 {[%clk 0:00:12.7]}
0-1

[Event "Late-Titled-Tuesday-Blitz-February-27-2024"]
[Site "Chess.com"]
[Date "2024.02.27"]
[Round "6"]
[White "Njal28"]
[Black "Polish_fighter3000"]
[Result "0-1"]
[WhiteElo "3033"]
[BlackElo "3107"]
[TimeControl "180+1"]
[EndTime "15:05:48 PST"]
[Termination "Polish_fighter3000 won by resignation"]

1. d4 {[%clk 0:03:00.9]} 1... Nf6 {[%clk 0:02:59.8]} 2. c4 {[%clk 0:02:59.8]}
2... g6 {[%clk 0:03:00.5]} 3. Nc3 {[%clk 0:02:58.6]} 3... d5 {[%clk 0:03:00.6]}
4. cxd5 {[%clk 0:02:56.6]} 4... Nxd5 {[%clk 0:03:01.5]} 5. e4 {[%clk 0:02:56.9]}
5... Nxc3 {[%clk 0:03:01.5]} 6. bxc3 {[%clk 0:02:57.8]} 6... Bg7 {[%clk
0:03:02]} 7. Nf3 {[%clk 0:02:56]} 7... c5 {[%clk 0:03:02.5]} 8. Bb5+ {[%clk
0:02:56]} 8... Bd7 {[%clk 0:03:02.1]} 9. Bxd7+ {[%clk 0:02:52.8]} 9... Qxd7
{[%clk 0:03:03]} 10. O-O {[%clk 0:02:51.5]} 10... O-O {[%clk 0:03:01.7]} 11. Rb1
{[%clk 0:02:48.9]} 11... Nc6 {[%clk 0:02:49.4]} 12. Be3 {[%clk 0:02:45.3]} 12...
Na5 {[%clk 0:02:32.8]} 13. Qe2 {[%clk 0:02:33]} 13... Rac8 {[%clk 0:02:30.3]}
14. d5 {[%clk 0:02:22.5]} 14... Qa4 {[%clk 0:02:11.3]} 15. Bg5 {[%clk
0:02:16.4]} 15... e6 {[%clk 0:01:19.1]} 16. Be7 {[%clk 0:01:54.2]} 16... Rfe8
{[%clk 0:01:14]} 17. d6 {[%clk 0:01:54.8]} 17... b6 {[%clk 0:01:08.2]} 18. Qb5
{[%clk 0:01:29.8]} 18... Qxb5 {[%clk 0:01:07.6]} 19. Rxb5 {[%clk 0:01:30.7]}
19... Nc6 {[%clk 0:01:08.1]} 20. d7 {[%clk 0:01:29.7]} 20... Nxe7 {[%clk
0:01:08.6]} 21. Rd1 {[%clk 0:01:18.4]} 21... Bxc3 {[%clk 0:01:05.7]} 22. Rb3
{[%clk 0:01:11.7]} 22... Bg7 {[%clk 0:01:00.9]} 23. Rbd3 {[%clk 0:00:42.6]}
23... Nc6 {[%clk 0:01:00.5]} 24. Rd6 {[%clk 0:00:39.3]} 24... Red8 {[%clk
0:01:00]} 25. dxc8=Q {[%clk 0:00:38.7]} 25... Rxc8 {[%clk 0:01:00.9]} 26. Rc1
{[%clk 0:00:14]} 26... Rc7 {[%clk 0:00:51.8]} 27. Kf1 {[%clk 0:00:13.8]} 27...
Kf8 {[%clk 0:00:51.1]} 28. a3 {[%clk 0:00:07.1]} 28... Bb2 {[%clk 0:00:43.3]}
29. Rc2 {[%clk 0:00:07.1]} 29... Bxa3 {[%clk 0:00:39.5]} 30. e5 {[%clk
0:00:07.2]} 30... Ke7 {[%clk 0:00:34.7]} 31. Rd1 {[%clk 0:00:03.6]} 31... b5
{[%clk 0:00:33]} 32. Re1 {[%clk 0:00:02.5]} 32... Bb4 {[%clk 0:00:31]} 33. Re4
{[%clk 0:00:02.6]} 33... a5 {[%clk 0:00:28.3]} 34. Ng5 {[%clk 0:00:02.4]} 34...
h6 {[%clk 0:00:28]} 35. Nf3 {[%clk 0:00:01.6]} 35... a4 {[%clk 0:00:27.8]} 36.
Ne1 {[%clk 0:00:01.3]} 36... Rd7 {[%clk 0:00:25.3]} 37. Ke2 {[%clk 0:00:01.5]}
37... Nd4+ {[%clk 0:00:25.4]} 38. Rxd4 {[%clk 0:00:02.1]} 38... Rxd4 {[%clk
0:00:26]} 39. Nd3 {[%clk 0:00:03]} 39... a3 {[%clk 0:00:23]} 40. Nxc5 {[%clk
0:00:03]} 40... Rc4 {[%clk 0:00:22.6]} 41. Rxc4 {[%clk 0:00:02.2]} 41... bxc4
{[%clk 0:00:23.5]} 42. Na6 {[%clk 0:00:01.1]} 42... a2 {[%clk 0:00:23.5]} 0-1

[Event "Late-Titled-Tuesday-Blitz-February-27-2024"]
[Site "Chess.com"]
[Date "2024.02.27"]
[Round "6"]
[White "SantoBlue"]
[Black "Adar_07"]
[Result "1-0"]
[WhiteElo "2982"]
[BlackElo "2784"]
[TimeControl "180+1"]
[EndTime "15:05:50 PST"]
[Termination "SantoBlue won by checkmate"]

1. e4 {[%clk 0:03:00.9]} 1... e5 {[%clk 0:02:56.8]} 2. Nf3 {[%clk 0:03:00.6]}
2... Nc6 {[%clk 0:02:57.4]} 3. Bb5 {[%clk 0:03:00.2]} 3... Nf6 {[%clk
0:02:57.7]} 4. d3 {[%clk 0:02:57.9]} 4... d6 {[%clk 0:02:58.2]} 5. c3 {[%clk
0:02:57.4]} 5... Be7 {[%clk 0:02:57.2]} 6. O-O {[%clk 0:02:56.7]} 6... O-O
{[%clk 0:02:56.2]} 7. Re1 {[%clk 0:02:57.3]} 7... a6 {[%clk 0:02:52.5]} 8. Ba4
{[%clk 0:02:57.4]} 8... b5 {[%clk 0:02:51.9]} 9. Bc2 {[%clk 0:02:57.3]} 9... Bg4
{[%clk 0:02:50.9]} 10. Nbd2 {[%clk 0:02:57.7]} 10... d5 {[%clk 0:02:44.1]} 11.
h3 {[%clk 0:02:56.9]} 11... Bh5 {[%clk 0:02:44]} 12. exd5 {[%clk 0:02:53.2]}
12... Nxd5 {[%clk 0:02:42.6]} 13. Ne4 {[%clk 0:02:48.3]} 13... Bg6 {[%clk
0:02:30.6]} 14. Ng3 {[%clk 0:02:45.7]} 14... Bf6 {[%clk 0:02:18.1]} 15. Ne4
{[%clk 0:02:41.1]} 15... Be7 {[%clk 0:02:15]} 16. a4 {[%clk 0:02:41.6]} 16... b4
{[%clk 0:02:10.3]} 17. Bd2 {[%clk 0:02:41.8]} 17... bxc3 {[%clk 0:02:10.2]} 18.
bxc3 {[%clk 0:02:41.7]} 18... Rb8 {[%clk 0:02:09.5]} 19. Ng3 {[%clk 0:02:40.9]}
19... Nf4 {[%clk 0:02:01.6]} 20. Bxf4 {[%clk 0:02:37.4]} 20... exf4 {[%clk
0:02:01.6]} 21. Ne4 {[%clk 0:02:37.8]} 21... Rb2 {[%clk 0:01:49.5]} 22. Qc1
{[%clk 0:02:33.9]} 22... Qb8 {[%clk 0:01:45.3]} 23. Ned2 {[%clk 0:02:29.8]}
23... Bf6 {[%clk 0:01:42.7]} 24. Ra3 {[%clk 0:02:13.3]} 24... Na5 {[%clk
0:01:27.2]} 25. Ne4 {[%clk 0:02:08.2]} 25... Be7 {[%clk 0:01:23.6]} 26. Ra1
{[%clk 0:02:07.2]} 26... c5 {[%clk 0:01:16.6]} 27. Rb1 {[%clk 0:01:55.1]} 27...
Rxb1 {[%clk 0:01:15.8]} 28. Bxb1 {[%clk 0:01:56]} 28... Rd8 {[%clk 0:00:59]} 29.
Bc2 {[%clk 0:01:35.2]} 29... Qc7 {[%clk 0:00:37.1]} 30. c4 {[%clk 0:01:30.9]}
30... Nc6 {[%clk 0:00:34]} 31. Nc3 {[%clk 0:01:30.8]} 31... Nb4 {[%clk
0:00:33.2]} 32. Ne5 {[%clk 0:01:28.3]} 32... Bf6 {[%clk 0:00:32.6]} 33. Nxg6
{[%clk 0:01:26.6]} 33... hxg6 {[%clk 0:00:21.1]} 34. Ne4 {[%clk 0:01:22.9]}
34... Bd4 {[%clk 0:00:19]} 35. Bb1 {[%clk 0:01:23.5]} 35... f5 {[%clk
0:00:16.6]} 36. Ng5 {[%clk 0:01:22.1]} 36... Qd7 {[%clk 0:00:13.3]} 37. Qxf4
{[%clk 0:01:18.4]} 37... Bf6 {[%clk 0:00:13.7]} 38. Nf3 {[%clk 0:01:15.9]} 38...
Qxa4 {[%clk 0:00:13.3]} 39. h4 {[%clk 0:01:10]} 39... Qd7 {[%clk 0:00:11]} 40.
g3 {[%clk 0:01:07.5]} 40... Nxd3 {[%clk 0:00:10.5]} 41. Bxd3 {[%clk 0:01:06.3]}
41... Qxd3 {[%clk 0:00:11.4]} 42. Kg2 {[%clk 0:01:05.6]} 42... a5 {[%clk
0:00:10.6]} 43. Re6 {[%clk 0:00:53.6]} 43... a4 {[%clk 0:00:09.4]} 44. Qc7
{[%clk 0:00:53.9]} 44... Qd7 {[%clk 0:00:07.4]} 45. Qxd7 {[%clk 0:00:50.2]}
45... Rxd7 {[%clk 0:00:08.3]} 46. Ra6 {[%clk 0:00:50.7]} 46... Rd3 {[%clk
0:00:07.2]} 47. Rxa4 {[%clk 0:00:51.2]} 47... Rc3 {[%clk 0:00:07.6]} 48. Ng1
{[%clk 0:00:44.9]} 48... Rc2 {[%clk 0:00:06.9]} 49. Nh3 {[%clk 0:00:45.3]} 49...
Kh7 {[%clk 0:00:06.6]} 50. Nf4 {[%clk 0:00:43.7]} 50... Bd4 {[%clk 0:00:06.3]}
51. Nh3 {[%clk 0:00:44.4]} 51... Kh6 {[%clk 0:00:06.2]} 52. Ra8 {[%clk
0:00:43.9]} 52... Kh7 {[%clk 0:00:06]} 53. Ng5+ {[%clk 0:00:44.2]} 53... Kh6
{[%clk 0:00:06.1]} 54. Rh8# {[%clk 0:00:45.1]} 1-0